bitfinex/quotes_BTCUSD_20220307
["timestamp","ask_amount","ask_price","bid_price","bid_amount"]
[1646679740547,0.1741333,37934.0,37933.0,0.19692125]
[1646679740753,0.17816297,37934.0,37933.0,0.19692125]
[1646679740951,0.18198389,37934.0,37933.0,0.19692125]
[1646679741148,0.00785059,37937.0,37934.0,0.01192611]
[1646679741349,0.00785059,37937.0,37936.0,0.15]
[1646679741747,0.00785059,37937.0,37934.0,0.01192611]
[1646679741951,0.1,37935.0,37933.0,0.001]
[1646679742254,0.77144085,37934.0,37933.0,0.001]
[1646679742551,3.11950054,37934.0,37933.0,0.001]
[1646679742749,3.58796831,37934.0,37933.0,0.001]
[1646679742950,4.35109798,37934.0,37933.0,0.001]
[1646679743151,6.62589651,37934.0,37933.0,0.001]
[1646679743357,7.27020692,37934.0,37933.0,0.001]
[1646679743552,10.2779192,37934.0,37933.0,0.001]
[1646679743750,14.9633366,37934.0,37933.0,0.001]
[1646679743986,9.56924722,37934.0,37933.0,0.001]
[1646679744187,9.37199503,37934.0,37933.0,0.001]
[1646679744388,8.57179503,37934.0,37933.0,0.001]
[1646679744585,9.36899503,37934.0,37933.0,0.001]
[1646679745187,4.68945454,37934.0,37933.0,0.001]
[1646679745387,4.47061369,37934.0,37933.0,0.001]
[1646679745586,4.45743369,37934.0,37933.0,0.001]
[1646679745785,4.35753369,37934.0,37933.0,0.001]
[1646679746484,4.1511256,37934.0,37933.0,0.001]
[1646679746687,3.19237108,37934.0,37933.0,0.001]
[1646679746985,3.23967108,37934.0,37933.0,0.001]
[1646679747187,3.17966915,37934.0,37933.0,0.001]
[1646679747389,0.065984,37936.0,37934.0,0.30333052]
[1646679747633,0.00014548,37936.0,37935.0,0.15]
[1646679748029,0.00014548,37936.0,37935.0,0.17622]
[1646679748830,0.00029096,37936.0,37935.0,0.17622]
[1646679749431,0.00529096,37936.0,37935.0,0.17622]
[1646679749634,0.01570118,37937.0,37935.0,0.17622]
[1646679749635,2.118e-05,37937.0,37935.0,0.17622]
[1646679749831,6.66e-06,37937.0,37936.0,0.17622]
[1646679750834,0.00015214,37937.0,37936.0,0.17622]
[1646679751476,0.00015214,37937.0,37936.0,0.47622]
[1646679751674,0.00015214,37937.0,37936.0,0.17622]
[1646679751874,0.00029762,37937.0,37936.0,0.17622]
[1646679752677,0.00029762,37937.0,37936.0,0.47622]
[1646679752978,1.31e-05,37937.0,37936.0,0.57892]
[1646679753177,1.31e-05,37937.0,37936.0,0.62892]
[1646679753379,1.31e-05,37937.0,37936.0,0.47611848]
[1646679753975,0.00015858,37937.0,37936.0,0.47611848]
[1646679754175,8.58e-06,37937.0,37936.0,0.47611848]
[1646679754575,8.58e-06,37937.0,37936.0,1.27631848]
[1646679754779,8.58e-06,37937.0,37936.0,1.32491848]
[1646679755125,1.406e-05,37937.0,37936.0,1.37491848]
[1646679755530,1.406e-05,37937.0,37936.0,1.42491848]
[1646679755733,1.406e-05,37937.0,37936.0,1.41241848]
[1646679755932,9.67e-06,37946.0,37940.0,0.8002]
[1646679756135,0.10018573,37953.0,37945.0,0.97631848]
[1646679756335,0.10018573,37953.0,37946.0,0.32611848]
[1646679756631,0.10018573,37953.0,37946.0,1.12631848]
[1646679756632,0.1,37953.0,37946.0,1.12631848]
[1646679756831,0.10018577,37953.0,37946.0,1.12631848]
[1646679757131,0.00018577,37953.0,37946.0,1.17631848]
[1646679757329,0.02621648,37947.0,37946.0,1.17631848]
[1646679758030,0.00521648,37947.0,37946.0,1.17631848]
[1646679758332,0.00018577,37953.0,37947.0,0.826522]
[1646679758530,0.00018577,37953.0,37952.0,0.36415231]
[1646679758733,5.77e-06,37953.0,37952.0,0.57611848]
[1646679758990,5.77e-06,37953.0,37952.0,1.42491848]
[1646679759182,5.77e-06,37953.0,37952.0,1.63714675]
[1646679759385,0.11306,37968.0,37959.0,0.02611848]
[1646679759386,0.21306,37968.0,37959.0,0.02611848]
[1646679759585,0.1999,37968.0,37965.0,0.34420904]
[1646679759786,0.0999,37968.0,37966.0,0.21419019]
[1646679760185,0.4459,37971.0,37967.0,0.36752975]
[1646679760385,0.1,37976.0,37967.0,0.66752975]
[1646679760587,0.01315,37975.0,37972.0,0.02622]
[1646679760784,0.1,37976.0,37972.0,0.09209367]
[1646679760983,0.1,37976.0,37972.0,0.51125846]
[1646679761189,0.1,37977.0,37976.0,0.02622]
[1646679761393,0.06661234,37978.0,37976.0,0.35598893]
[1646679761785,0.06661234,37978.0,37976.0,0.38770505]
[1646679761987,0.06661234,37978.0,37972.0,0.20359277]
[1646679762185,0.065888,37977.0,37972.0,0.20359277]
[1646679762386,0.1,37974.0,37971.0,0.0486]
[1646679762626,0.1,37973.0,37971.0,0.0486]
[1646679762826,0.1,37973.0,37971.0,0.25285277]
[1646679763027,0.1,37972.0,37971.0,0.2786813]
[1646679763325,0.1,37975.0,37971.0,0.04820853]
[1646679763729,0.1,37974.0,37971.0,0.04820853]
[1646679763928,0.4,37974.0,37971.0,0.04820853]
[1646679764134,0.1,37972.0,37971.0,0.04820853]
[1646679765030,0.1,37973.0,37971.0,0.04820853]
[1646679765228,0.1,37972.0,37971.0,0.04820853]
[1646679765430,0.103,37972.0,37971.0,0.04820853]
[1646679765630,0.003,37972.0,37971.0,0.26146672]
[1646679766033,0.003,37972.0,37971.0,0.64277594]
[1646679766234,0.003,37972.0,37971.0,1.05865679]
[1646679766480,0.0001,37972.0,37971.0,1.51446079]
[1646679766682,0.00018889,37973.0,37972.0,0.82642]
[1646679766880,0.00018889,37973.0,37972.0,1.22502]
[1646679767079,8.89e-06,37973.0,37972.0,1.630824]
[1646679767282,0.1,37986.0,37977.0,0.02622]
[1646679767479,0.01,37989.0,37983.0,0.02622]
[1646679767480,0.1,37987.0,37983.0,0.02622]
[1646679767679,0.1,37987.0,37983.0,0.07482]
[1646679767880,0.1,37988.0,37984.0,0.09206545]
[1646679768079,0.1,37988.0,37985.0,0.00019415]
[1646679768279,0.40885735,37989.0,37985.0,0.00019415]
[1646679768280,0.05473261,37987.0,37985.0,0.00019415]
[1646679768482,0.1,37987.0,37985.0,0.00019415]
[1646679769880,0.1,37987.0,37985.0,0.00013415]
[1646679770926,0.29297117,37987.0,37985.0,0.00013415]
[1646679771126,0.1,37986.0,37985.0,0.00013415]
[1646679772129,0.1,37986.0,37985.0,0.45392019]
[1646679772930,0.1,37986.0,37985.0,0.26912614]
[1646679773131,0.01070239,37987.0,37985.0,0.26912614]
[1646679773336,0.01,37989.0,37986.0,0.36584152]
[1646679773731,0.00016042,37987.0,37986.0,0.3]
[1646679774176,0.00016042,37987.0,37986.0,0.52369313]
[1646679774378,0.00016042,37987.0,37986.0,0.58953613]
[1646679774583,0.01,37989.0,37986.0,0.63953613]
[1646679774779,0.00016042,37988.0,37986.0,0.70537913]
[1646679774977,0.00016042,37988.0,37987.0,0.32622]
[1646679775178,0.00016042,37988.0,37987.0,0.52622]
[1646679775778,0.01,37989.0,37987.0,0.07622]
[1646679775980,0.0101932,37989.0,37987.0,0.05]
[1646679776179,0.0101932,37989.0,37986.0,0.05255912]
[1646679776381,0.0101932,37989.0,37986.0,0.50255912]
[1646679776980,0.01,37989.0,37986.0,0.50255912]
[1646679777182,0.0101932,37989.0,37986.0,0.50255912]
[1646679777379,0.0151932,37989.0,37986.0,0.50255912]
[1646679778232,0.1,37988.0,37986.0,0.50255912]
[1646679778433,0.165861,37988.0,37986.0,0.50255912]
[1646679778832,0.1,37987.0,37986.0,0.50255912]
[1646679779031,0.1,37988.0,37986.0,0.50255912]
[1646679779440,0.20921888,37985.0,37980.0,0.5]
[1646679779836,0.30921888,37985.0,37980.0,0.38574989]
[1646679780039,0.1,37981.0,37980.0,0.38574989]
[1646679780235,0.31796121,37981.0,37980.0,0.38574989]
[1646679780644,0.41796121,37981.0,37980.0,0.38574989]
[1646679780934,0.51796121,37981.0,37980.0,0.38574989]
[1646679781134,0.21533224,37976.0,37971.0,0.3]
[1646679781378,0.21533224,37976.0,37970.0,0.5]
[1646679781680,0.31533224,37976.0,37970.0,0.5]
[1646679782074,0.00018958,37975.0,37970.0,0.5]
[1646679782478,0.06607858,37975.0,37970.0,0.5]
[1646679783074,0.065889,37975.0,37970.0,0.5]
[1646679783475,0.07107858,37975.0,37970.0,0.5]
[1646679783674,0.17107858,37975.0,37970.0,0.5]
[1646679784175,0.170889,37975.0,37969.0,0.43178175]
[1646679784576,0.1710756,37975.0,37969.0,0.43178175]
[1646679784774,0.1,37973.0,37969.0,0.43178175]
[1646679785227,0.1,37972.0,37969.0,0.19403909]
[1646679785527,0.1,37972.0,37969.0,0.2599203]
[1646679785728,0.1,37972.0,37967.0,0.5]
[1646679785932,0.1,37971.0,37967.0,0.5]
[1646679786330,0.1,37968.0,37967.0,0.5]
[1646679786630,0.1,37968.0,37963.0,0.76438707]
[1646679786829,0.1,37968.0,37964.0,0.19841678]
[1646679787029,0.1,37966.0,37964.0,0.19841678]
[1646679788630,0.1,37966.0,37963.0,0.5]
[1646679789480,0.102,37966.0,37963.0,0.5]
[1646679789681,0.102,37966.0,37962.0,0.21483857]
[1646679790289,0.102,37966.0,37963.0,0.3]
[1646679790488,0.002,37966.0,37963.0,0.39210747]
[1646679790685,0.00153537,37972.0,37964.0,0.32622]
[1646679790882,0.00153537,37972.0,37964.0,0.37622]
[1646679791082,0.00153537,37972.0,37969.0,0.20929676]
[1646679791289,0.1,37974.0,37970.0,0.52369023]
[1646679791489,0.002,37972.0,37970.0,0.52369023]
[1646679791684,0.002,37972.0,37970.0,0.22369023]
[1646679791883,0.002,37972.0,37971.0,0.35]
[1646679792286,0.0001871,37975.0,37972.0,0.82642]
[1646679792485,0.0001871,37975.0,37974.0,0.02622]
[1646679792779,0.0999,37981.0,37978.0,0.17680556]
[1646679793179,0.0999,37981.0,37975.0,0.02622]
[1646679793377,0.0999,37981.0,37976.0,0.23662776]
[1646679793576,0.0999,37981.0,37972.0,0.3]
[1646679793577,0.165773,37981.0,37975.0,0.5]
[1646679793777,0.1,37980.0,37975.0,0.5]
[1646679793981,0.1,37978.0,37975.0,0.5]
[1646679794179,0.09958,37978.0,37971.0,0.06587908]
[1646679794380,0.09958,37978.0,37968.0,0.55828246]
[1646679794381,0.21879261,37977.0,37968.0,0.68857109]
[1646679794586,0.00153537,37972.0,37968.0,0.75681632]
[1646679794779,0.06589,37971.0,37968.0,0.55]
[1646679794982,0.06589,37971.0,37968.0,0.5]
[1646679794983,0.131788,37971.0,37968.0,0.5]
[1646679795185,0.231768,37971.0,37968.0,0.5]
[1646679795384,0.16587,37971.0,37968.0,0.5]
[1646679795584,0.09998,37969.0,37968.0,0.5]
[1646679796178,0.09998,37969.0,37964.0,0.15863074]
[1646679796390,0.09998,37969.0,37965.0,0.06588864]
[1646679796587,0.00153537,37972.0,37965.0,0.06588864]
[1646679796588,0.09998,37968.0,37965.0,0.06588864]
[1646679797387,0.09998,37968.0,37966.0,0.16576262]
[1646679797790,0.00153537,37972.0,37966.0,0.46576262]
[1646679798390,0.00153537,37972.0,37966.0,0.51576262]
[1646679798589,0.09998,37980.0,37969.0,0.82642]
[1646679798789,0.01315,37984.0,37974.0,0.19230992]
[1646679798790,0.09998,37984.0,37974.0,0.19230992]
[1646679798989,0.09998,37984.0,37974.0,0.44228642]
[1646679798990,0.00018713,37975.0,37974.0,0.44228642]
[1646679799189,0.00018713,37975.0,37974.0,0.05]
[1646679799390,0.00018713,37975.0,37963.0,1.1941]
[1646679799391,0.00018713,37975.0,37967.0,0.5]
[1646679799592,0.065893,37974.0,37968.0,0.00290607]
[1646679800239,0.09998,37972.0,37968.0,0.00290607]
[1646679801044,0.6040433,37978.0,37968.0,0.00290607]
[1646679801045,0.09998,37976.0,37969.0,0.47168042]
[1646679801241,0.09998,37976.0,37970.0,0.3]
[1646679801438,0.00018714,37975.0,37970.0,0.3]
[1646679801637,0.00018714,37975.0,37974.0,0.20771704]
[1646679802037,0.00018714,37975.0,37973.0,0.06586919]
[1646679802241,0.09998,37979.0,37972.0,0.18173838]
[1646679802436,0.09998,37979.0,37970.0,0.3]
[1646679802637,0.10016715,37976.0,37970.0,0.3]
[1646679802837,0.10016715,37976.0,37971.0,0.22568909]
[1646679803037,0.10016715,37976.0,37971.0,0.27568909]
[1646679803237,0.10016715,37976.0,37972.0,0.19838025]
[1646679803442,0.09998,37976.0,37972.0,0.19838025]
[1646679803637,0.00018715,37975.0,37972.0,0.54838025]
[1646679803878,0.00018715,37975.0,37972.0,0.24838025]
[1646679804075,0.00018715,37975.0,37972.0,0.54838025]
[1646679804680,0.09998,37976.0,37972.0,0.19838025]
[1646679804879,0.00017958,37975.0,37972.0,0.19838025]
[1646679805278,0.00017958,37975.0,37972.0,0.26425069]
[1646679805480,0.00017958,37975.0,37974.0,0.26209713]
[1646679805784,0.09998,37976.0,37974.0,0.26209713]
[1646679805986,0.01315,37984.0,37975.0,0.705804]
[1646679805987,0.09998,37981.0,37975.0,0.705804]
[1646679806182,0.00017958,37976.0,37975.0,0.3]
[1646679806381,0.00017958,37976.0,37974.0,0.05]
[1646679806579,0.00017958,37976.0,37973.0,0.35]
[1646679806779,0.00017958,37976.0,37975.0,0.16776596]
[1646679806980,0.010543,37977.0,37976.0,0.06586812]
[1646679807381,0.3722583,37982.0,37976.0,0.06586812]
[1646679807631,0.3722583,37982.0,37975.0,0.18172983]
[1646679808331,0.3722583,37981.0,37975.0,0.18172983]
[1646679808536,0.00018715,37980.0,37975.0,0.18172983]
[1646679809534,0.3722583,37980.0,37974.0,0.5]
[1646679809732,0.3722583,37980.0,37974.0,0.55]
[1646679809733,0.37244545,37979.0,37974.0,0.55]
[1646679809933,0.37244545,37979.0,37974.0,0.5]
[1646679809934,0.3722583,37978.0,37974.0,0.5]
[1646679810135,0.47242545,37979.0,37974.0,0.5]
[1646679810332,0.065881,37977.0,37974.0,0.5]
[1646679810532,0.4722383,37978.0,37974.0,0.5]
[1646679810733,0.19194137,37977.0,37974.0,0.5]
[1646679810935,0.19194137,37977.0,37973.0,0.5]
[1646679811137,0.56419967,37977.0,37973.0,0.5]
[1646679811397,0.3722583,37977.0,37973.0,0.5]
[1646679811900,0.4722383,37978.0,37970.0,0.50133959]
[1646679812102,0.065881,37976.0,37971.0,0.11587782]
[1646679812795,0.065881,37976.0,37971.0,0.05]
[1646679813195,0.00017478,37975.0,37971.0,0.05]
[1646679813397,0.10017478,37975.0,37970.0,0.50133959]
[1646679813613,0.14858,37974.0,37970.0,0.50133959]
[1646679813808,0.3722583,37972.0,37970.0,0.43236013]
[1646679813999,0.1687657,37973.0,37970.0,0.43236013]
[1646679814000,0.4722383,37971.0,37970.0,0.43236013]
[1646679814197,0.6721383,37971.0,37970.0,0.43236013]
[1646679814397,0.35450927,37971.0,37970.0,0.43236013]
[1646679814599,0.52452645,37971.0,37970.0,0.43236013]
[1646679814800,0.52452645,37971.0,37970.0,0.00133959]
[1646679814999,0.74042745,37971.0,37970.0,0.00133959]
[1646679815236,0.9576323,37971.0,37970.0,0.00133959]
[1646679815443,0.9576323,37971.0,37960.0,0.5]
[1646679815444,0.9063323,37971.0,37960.0,0.5]
[1646679815638,0.45164652,37965.0,37953.0,0.41816]
[1646679815838,0.41981052,37964.0,37954.0,0.5]
[1646679816137,0.09998,37957.0,37954.0,0.5]
[1646679816540,0.09998,37957.0,37953.0,0.41816]
[1646679816541,0.09998,37956.0,37953.0,0.41816]
[1646679816938,0.09998,37955.0,37953.0,0.41816]
[1646679817137,0.297762,37957.0,37953.0,0.41816]
[1646679817138,0.09998,37954.0,37953.0,0.41816]
[1646679819787,0.19998,37954.0,37953.0,0.41816]
[1646679821089,0.09998,37954.0,37953.0,0.41816]
[1646679825732,0.110531,37954.0,37953.0,0.41816]
[1646679826389,0.110531,37954.0,37953.0,0.37634401]
[1646679826689,0.210531,37954.0,37953.0,0.37634401]
[1646679827084,0.19998,37954.0,37953.0,0.37634401]
[1646679827885,0.19998,37954.0,37953.0,6e-05]
[1646679828088,0.19998,37957.0,37953.0,0.69201638]
[1646679828287,0.09998,37957.0,37954.0,0.06590194]
[1646679828688,0.09998,37961.0,37954.0,0.06590194]
[1646679828887,0.09998,37961.0,37957.0,0.19420732]
[1646679829293,0.09998,37961.0,37957.0,0.49420732]
[1646679829488,0.09998,37961.0,37957.0,0.19420732]
[1646679830137,0.09998,37961.0,37956.0,0.2041017]
[1646679830537,0.14998,37961.0,37956.0,0.2041017]
[1646679830735,0.05,37961.0,37956.0,0.2041017]
[1646679831136,0.09998,37963.0,37960.0,0.26520499]
[1646679831341,0.01316,37967.0,37960.0,0.26520499]
[1646679831342,0.09998,37967.0,37961.0,0.49256831]
[1646679831542,0.09998,37970.0,37962.0,0.405804]
[1646679831736,0.09998,37970.0,37961.0,0.49256831]
[1646679831737,0.09998,37970.0,37963.0,0.3]
[1646679831943,0.09998,37971.0,37964.0,0.405804]
[1646679832140,0.09998,37972.0,37965.0,0.705804]
[1646679832343,0.09998,37972.0,37966.0,0.405804]
[1646679832540,0.37311227,37977.0,37968.0,0.405804]
[1646679832541,0.00018719,37975.0,37968.0,0.405804]
[1646679832738,0.00018719,37975.0,37974.0,0.18537245]
[1646679832936,0.00018719,37975.0,37974.0,0.48537245]
[1646679833538,0.010544,37976.0,37974.0,1.17318417]
[1646679833749,0.01071111,37976.0,37975.0,0.3]
[1646679834003,0.00016711,37976.0,37975.0,0.3]
[1646679834205,0.20921888,37985.0,37976.0,1.65]
[1646679834404,0.20921888,37985.0,37982.0,0.34593619]
[1646679834605,0.20921888,37985.0,37982.0,0.065853]
[1646679834805,0.20921888,37985.0,37977.0,0.43170616]
[1646679835003,0.20921888,37985.0,37977.0,0.5]
[1646679835300,0.065868,37984.0,37977.0,0.5]
[1646679835502,0.06150092,37979.0,37977.0,0.5]
[1646679835708,0.2139639,37981.0,37977.0,0.5]
[1646679835903,0.05,37981.0,37977.0,1.3002]
[1646679836103,0.09998,37980.0,37977.0,0.5]
[1646679836302,0.05,37980.0,37977.0,0.43330303]
[1646679836701,0.24998,37984.0,37977.0,0.61127353]
[1646679837108,0.09998,37984.0,37978.0,0.20719965]
[1646679837503,0.021085,37984.0,37978.0,0.20719965]
[1646679837928,0.20921888,37985.0,37978.0,0.20719965]
[1646679838729,0.00018706,37983.0,37978.0,0.20719965]
[1646679839331,0.00018706,37983.0,37977.0,0.43330303]
[1646679839530,0.05,37984.0,37977.0,0.43330303]
[1646679839733,0.00018922,37982.0,37977.0,0.43330303]
[1646679840638,0.065869,37983.0,37977.0,0.43330303]
[1646679840828,0.065869,37983.0,37977.0,0.43294647]
[1646679841032,0.24445644,37984.0,37980.0,0.17050296]
[1646679841033,0.00018922,37981.0,37980.0,0.17050296]
[1646679841232,0.00018922,37981.0,37980.0,0.52050296]
[1646679841488,0.00018922,37981.0,37980.0,0.92630696]
[1646679841682,0.00018922,37981.0,37980.0,1.42630696]
[1646679841881,0.20921888,37985.0,37980.0,1.02050296]
[1646679842082,0.20921888,37985.0,37981.0,0.06585335]
[1646679842289,0.20921888,37985.0,37982.0,0.3]
[1646679842683,0.20921888,37985.0,37982.0,0.35]
[1646679842883,0.05,37984.0,37982.0,0.85]
[1646679843283,0.05,37984.0,37982.0,0.8]
[1646679843485,0.05,37984.0,37983.0,0.3]
[1646679844287,0.05,37984.0,37983.0,0.35]
[1646679845334,0.060541,37984.0,37983.0,0.35]
[1646679845532,0.01,37989.0,37984.0,2.832224]
[1646679845736,0.01,37989.0,37986.0,0.87642]
[1646679845935,0.01,37989.0,37987.0,1.580824]
[1646679846132,0.01,37989.0,37988.0,1.34144618]
[1646679846331,0.01,37989.0,37988.0,1.62057541]
[1646679846532,0.01315,38002.0,37999.0,0.16503795]
[1646679846932,0.01315,38004.0,37999.0,0.16503795]
[1646679847434,0.078983,38004.0,37997.0,0.69135122]
[1646679848033,0.00815,38004.0,37998.0,0.3]
[1646679848235,0.00018463,38002.0,37999.0,0.63718302]
[1646679848433,0.00018463,38002.0,38001.0,0.405804]
[1646679848880,0.00018463,38002.0,38000.0,0.5]
[1646679849082,0.00815,38004.0,38000.0,0.5]
[1646679849083,0.19491013,38004.0,38000.0,0.5]
[1646679849285,0.010537,38003.0,38000.0,0.45000001]
[1646679849482,0.09998,38001.0,38000.0,0.33681136]
[1646679850187,0.14998,38001.0,37994.0,0.20287071]
[1646679850583,0.09998,37999.0,37994.0,0.20287071]
[1646679850984,0.09998,37999.0,37993.0,0.16562786]
[1646679851485,0.09998,37999.0,37991.0,0.72046809]
[1646679851682,0.09998,37999.0,37991.0,0.55]
[1646679851886,0.00018724,37998.0,37991.0,0.55]
[1646679852285,0.00018724,37998.0,37991.0,0.5]
[1646679852734,0.09998,37999.0,37991.0,0.5]
[1646679852930,0.00018724,37996.0,37993.0,0.21856538]
[1646679853131,0.00018724,37996.0,37994.0,0.16140767]
[1646679853330,0.00018724,37996.0,37991.0,0.5]
[1646679853531,0.10016724,37996.0,37991.0,0.5]
[1646679853930,0.09998,37996.0,37991.0,0.5]
[1646679854133,0.00018722,37995.0,37991.0,0.5]
[1646679854736,0.00018722,37995.0,37986.0,0.5]
[1646679854737,0.15,37994.0,37986.0,0.5]
[1646679854937,0.065879,37992.0,37986.0,0.5]
[1646679855132,0.1,37989.0,37978.0,0.3]
[1646679855338,0.09998,37987.0,37978.0,0.25083705]
[1646679855736,0.09998,37983.0,37979.0,0.5]
[1646679856132,0.09998,37983.0,37978.0,0.25083705]
[1646679856588,0.09998,37989.0,37978.0,0.25083705]
[1646679856789,0.00018723,37983.0,37979.0,0.3]
[1646679857588,0.065861,37988.0,37979.0,0.3]
[1646679857789,0.00318724,37983.0,37979.0,0.3]
[1646679857992,0.00318724,37983.0,37977.0,0.33]
[1646679858388,0.00318724,37983.0,37981.0,0.17264932]
[1646679858590,0.00318724,37983.0,37981.0,0.58440181]
[1646679858788,0.003,37983.0,37981.0,0.58440181]
[1646679858988,0.00018724,37984.0,37981.0,0.58586319]
[1646679859189,0.00018724,37984.0,37981.0,0.36168185]
[1646679859995,0.09998,37986.0,37981.0,0.36168185]
[1646679860234,0.00018723,37984.0,37981.0,0.36168185]
[1646679861234,0.09998,37986.0,37981.0,0.36168185]
[1646679861431,0.00018723,37984.0,37981.0,0.36168185]
[1646679862333,0.09998,37986.0,37981.0,0.36168185]
[1646679862734,0.00018723,37984.0,37983.0,0.23732491]
[1646679863034,0.00018723,37984.0,37981.0,0.36168185]
[1646679863337,0.00018723,37984.0,37981.0,0.18903253]
[1646679863535,0.09998,37986.0,37981.0,0.18903253]
[1646679863735,0.004,37984.0,37981.0,0.18903253]
[1646679863983,0.00418723,37984.0,37983.0,0.26677589]
[1646679864485,0.00418723,37984.0,37983.0,0.44895411]
[1646679864786,0.004,37984.0,37983.0,0.44895411]
[1646679864984,0.00018723,37985.0,37983.0,0.44895411]
[1646679865384,0.00018723,37985.0,37983.0,0.18362799]
[1646679865784,0.00418723,37985.0,37983.0,0.18362799]
[1646679866090,0.004,37985.0,37983.0,0.00144977]
[1646679866887,0.06605023,37986.0,37983.0,0.00144977]
[1646679867087,0.065863,37986.0,37983.0,0.0013048]
[1646679867489,0.06605023,37986.0,37983.0,0.0013048]
[1646679867733,0.07005023,37986.0,37983.0,0.0013048]
[1646679868333,0.069863,37986.0,37983.0,0.0013048]
[1646679868737,0.07005023,37986.0,37983.0,0.0013048]
[1646679868939,0.00018723,37986.0,37983.0,0.0013048]
[1646679869135,0.00018723,37986.0,37983.0,0.06715383]
[1646679869334,0.00018723,37986.0,37984.0,0.49503158]
[1646679869534,0.09998,37993.0,37985.0,0.3]
[1646679869935,0.09998,37993.0,37990.0,0.18101365]
[1646679870637,0.09998,37995.0,37991.0,0.21617984]
[1646679870836,0.5458,37998.0,37991.0,0.21617984]
[1646679871036,0.00018723,37993.0,37983.0,0.80145896]
[1646679871241,0.00018723,37993.0,37983.0,0.85145896]
[1646679871487,0.06603823,37993.0,37983.0,0.85145896]
[1646679871687,0.06903823,37993.0,37983.0,0.85145896]
[1646679871987,0.09998,37991.0,37983.0,0.50145896]
[1646679872188,0.192583,37990.0,37983.0,0.50145896]
[1646679872388,0.00018723,37990.0,37983.0,0.50145896]
[1646679872587,0.06604423,37990.0,37983.0,0.50145896]
[1646679872790,0.16602423,37990.0,37983.0,0.50145896]
[1646679873289,0.165837,37990.0,37983.0,0.50145896]
[1646679873491,0.09998,37988.0,37984.0,0.23894529]
[1646679873891,0.09998,37988.0,37983.0,0.00145896]
[1646679874189,0.09998,37988.0,37981.0,0.8]
[1646679874791,0.16584,37988.0,37981.0,0.5]
[1646679875831,0.16984,37988.0,37981.0,0.5]
[1646679877031,0.16584,37988.0,37981.0,0.5]
[1646679877231,0.09998,37987.0,37981.0,0.5]
[1646679877433,0.09998,37986.0,37981.0,0.5]
[1646679877633,0.065867,37985.0,37981.0,0.5]
[1646679878879,0.065867,37985.0,37983.0,0.00143769]
[1646679879284,0.43906903,37985.0,37983.0,0.00129393]
[1646679879685,0.0266563,37984.0,37983.0,0.00129393]
[1646679879882,0.1266363,37984.0,37983.0,0.00129393]
[1646679880482,0.1371793,37984.0,37983.0,0.00129393]
[1646679881488,0.1871793,37984.0,37983.0,0.00129393]
[1646679881690,0.1911793,37984.0,37983.0,0.00129393]
[1646679881985,0.2910793,37984.0,37983.0,0.00129393]
[1646679882184,0.3910793,37984.0,37983.0,0.00129393]
[1646679882385,0.58829087,37984.0,37983.0,0.00129393]
[1646679882636,0.48829087,37984.0,37983.0,0.00129393]
[1646679883036,0.48429087,37984.0,37983.0,0.00129393]
[1646679883237,0.43429087,37984.0,37983.0,0.00129393]
[1646679883837,0.43929087,37984.0,37983.0,0.00129393]
[1646679884539,0.43929087,37984.0,37977.0,0.03]
[1646679884738,0.37275661,37980.0,37977.0,0.03]
[1646679884941,0.09998,37983.0,37977.0,0.03]
[1646679885139,0.09998,37980.0,37977.0,0.03]
[1646679885939,0.19988,37980.0,37977.0,0.03]
[1646679887188,0.24988,37980.0,37977.0,0.03]
[1646679887588,0.315754,37980.0,37977.0,0.03]
[1646679887787,0.320754,37980.0,37977.0,0.03]
[1646679888988,0.315754,37980.0,37977.0,0.03]
[1646679889189,0.26718241,37980.0,37977.0,0.03]
[1646679889691,0.27118241,37980.0,37977.0,0.03]
[1646679891134,0.26718241,37980.0,37977.0,0.03]
[1646679891441,0.26718241,37980.0,37971.0,0.00039655]
[1646679891442,0.02172347,37975.0,37971.0,0.00039655]
[1646679891638,0.02662463,37974.0,37971.0,0.00039655]
[1646679891837,0.07512463,37974.0,37971.0,0.00039655]
[1646679892038,0.15,37972.0,37971.0,0.00039655]
[1646679892240,0.62512463,37972.0,37962.0,0.002]
[1646679892443,0.39097478,37965.0,37957.0,0.20673755]
[1646679892637,0.31929861,37964.0,37957.0,0.20673755]
[1646679892836,0.51927861,37963.0,37957.0,0.20673755]
[1646679893037,0.09998,37960.0,37958.0,9.917e-05]
[1646679893437,0.1,37959.0,37958.0,9.917e-05]
[1646679893639,0.1,37959.0,37953.0,0.69495638]
[1646679893640,0.19998,37959.0,37953.0,0.69495638]
[1646679893889,0.19998,37959.0,37954.0,0.60725479]
[1646679893890,0.09998,37959.0,37954.0,0.60725479]
[1646679894089,0.09979246,37955.0,37953.0,0.69495638]
[1646679894490,0.09979246,37954.0,37953.0,0.69495638]
[1646679895294,0.01055,37955.0,37953.0,0.69495638]
[1646679895493,0.09999246,37954.0,37953.0,0.69495638]
[1646679895791,0.10499246,37954.0,37953.0,0.69495638]
[1646679897092,0.09999246,37954.0,37953.0,0.69495638]
[1646679897943,0.10399246,37954.0,37953.0,0.69495638]
[1646679898142,0.004,37954.0,37953.0,0.69495638]
[1646679898941,0.09999246,37961.0,37953.0,0.94942414]
[1646679899142,0.010548,37960.0,37953.0,0.94942414]
[1646679899342,0.065903,37959.0,37953.0,0.94942414]
[1646679899942,0.065903,37959.0,37954.0,9.621e-05]
[1646679900453,0.09999246,37962.0,37958.0,0.405804]
[1646679900650,0.09999246,37962.0,37957.0,0.17568244]
[1646679900651,0.09999246,37962.0,37959.0,0.705804]
[1646679900844,0.09999246,37967.0,37959.0,0.3]
[1646679901044,0.09999246,37967.0,37957.0,0.17568244]
[1646679901045,0.09999246,37967.0,37958.0,0.3000962]
[1646679901241,0.09999246,37967.0,37957.0,0.22568244]
[1646679901242,0.19510228,37966.0,37953.0,0.69495638]
[1646679901504,0.131837,37961.0,37953.0,0.69495638]
[1646679901700,0.31474619,37959.0,37953.0,0.69495638]
[1646679901899,0.1,37957.0,37953.0,0.69495638]
[1646679902096,0.09999246,37954.0,37953.0,0.69495638]